fUST/lending_fUST_20250926
["ID","MTS","AMOUNT","RATE_DAILY","PERIOD"]
[387703733,1758816639999,-480.0,0.00019589,2]
[387703734,1758816640009,-480.0,0.00019589,2]
[387703735,1758816640019,-480.0,0.00019589,2]
[387703736,1758816640028,-480.0,0.00019589,2]
[387703737,1758816640038,-480.0,0.00019589,2]
[387703738,1758816640047,-480.0,0.00019589,2]
[387703739,1758816640057,-768.28,0.00019589,2]
[387703740,1758816640066,-917.02,0.00019589,2]
[387703741,1758816640076,-480.0,0.00019589,2]
[387703742,1758816640086,-482.11,0.00019589,2]
[387703743,1758816640095,-480.0,0.00019589,2]
[387703744,1758816640105,-173.49,0.00019589,2]
[387703745,1758816640115,-1138.82,0.00019589,2]
[387703746,1758816640125,-480.0,0.0001959,2]
[387703747,1758816640142,-498.1,0.0001959,2]
[387703748,1758816640162,-480.0,0.0001959,2]
[387703749,1758816640176,-480.0,0.00019622,2]
[387703750,1758816640186,-530.93,0.00019622,2]
[387703751,1758816640196,-570.63998174,0.00019622,2]
[387703752,1758816640206,-480.0,0.00019623,2]
[387703753,1758816640215,-480.0,0.00019623,2]
[387703754,1758816640225,-480.0,0.00019623,2]
[387703755,1758816640234,-480.0,0.00019623,2]
[387703756,1758816640244,-351.95208544,0.00019623,2]
[387703757,1758816640253,-294.13368788,0.00019623,2]
[387703758,1758816640263,-480.0,0.00019623,2]
[387703759,1758816640272,-480.0,0.00019623,2]
[387703760,1758816640282,-480.0,0.00019623,2]
[387703761,1758816640291,-480.0,0.00019623,2]
[387703762,1758816640301,-480.0,0.00019623,2]
[387703763,1758816640310,-480.0,0.00019624,2]
[387703764,1758816640319,-500.0,0.00019624,2]
[387703765,1758816640329,-326.53,0.00019797,2]
[387703766,1758816640339,-480.0,0.00019862,2]
[387703767,1758816640348,-480.0,0.00019862,2]
[387703768,1758816640358,-676.01,0.00019862,2]
[387703769,1758816640368,-1289.79,0.00019862,2]
[387703770,1758816640378,-480.0,0.00019862,2]
[387703771,1758816640387,-480.0,0.00019862,2]
[387703772,1758816640397,-480.0,0.00019862,2]
[387703773,1758816640408,-480.0,0.00019862,2]
[387703774,1758816640418,-480.0,0.00019862,2]
[387703775,1758816640427,-480.0,0.00019862,2]
[387703776,1758816640437,-480.0,0.00019862,2]
[387703777,1758816640446,-480.0,0.00019863,2]
[387703778,1758816640456,-480.0,0.00019863,2]
[387703779,1758816640465,-480.0,0.00019863,2]
[387703780,1758816640474,-273.35057942,0.00019863,2]
[387703781,1758816640483,-480.0,0.00019863,2]
[387703782,1758816640493,-480.0,0.00019863,2]
[387703783,1758816640503,-340.20104849,0.00019863,2]
[387703784,1758816640512,-1152.53,0.00019863,2]
[387703785,1758816640522,-480.0,0.00019863,2]
[387703786,1758816640531,-2971.61,0.00019863,2]
[387703787,1758816640540,-480.0,0.00019863,2]
[387703788,1758816640550,-1162.03,0.00019863,2]
[387703789,1758816640559,-522.61,0.00019863,2]
[387703790,1758816640569,-480.0,0.00019863,2]
[387703791,1758816640578,-480.0,0.00019863,2]
[387703792,1758816640587,-480.0,0.00019863,2]
[387703793,1758816640597,-601.36041641,0.00019863,2]
[387703794,1758816640607,-324.66409079,0.00019863,2]
[387703795,1758816640616,-768.28,0.00019863,2]
[387703796,1758816640626,-917.02,0.00019863,2]
[387703797,1758816640635,-480.0,0.00019863,2]
[387703798,1758816640644,-482.11,0.00019863,2]
[387703799,1758816640654,-480.0,0.00019863,2]
[387703800,1758816640664,-1138.82,0.00019863,2]
[387703801,1758816640674,-480.0,0.00019864,2]
[387703802,1758816640683,-498.1,0.00019864,2]
[387703803,1758816640693,-480.0,0.00019864,2]
[387703804,1758816640702,-500.0,0.00019873,2]
[387703805,1758816640712,-614.68371505,0.00019873,2]
[387703806,1758816640725,-500.0,0.00019873,2]
[387703807,1758816640735,-500.0,0.00019873,2]
[387703808,1758816640744,-500.0,0.00019873,2]
[387703809,1758816640754,-500.70688471,0.00019873,2]
[387703810,1758816640764,-500.0,0.00019873,2]
[387703811,1758816640773,-480.0,0.00019896,2]
[387703813,1758816640783,-530.93,0.00019896,2]
[387703815,1758816640793,-480.0,0.00019897,2]
[387703817,1758816640803,-480.0,0.00019897,2]
[387703819,1758816640812,-480.0,0.00019897,2]
[387703821,1758816640822,-480.0,0.00019898,2]
[387703823,1758816640831,-2263.08322491,0.000199,2]
[387703825,1758816640840,-500.0,0.00019973,2]
[387703827,1758816640850,-500.0,0.00019973,2]
[387703829,1758816640859,-500.0,0.00019973,2]
[387703831,1758816640869,-327.74066599,0.00019973,2]
[387703833,1758816640879,-500.0,0.00019973,2]
[387703835,1758816640888,-500.0,0.00019973,2]
[387703837,1758816640898,-500.0,0.00019973,2]
[387703839,1758816640909,-217.95449826,0.00019973,2]
[387703841,1758816640919,-500.0,0.00019973,2]
[387703842,1758816640929,-500.0,0.00019973,2]
[387703844,1758816640939,-203.48031014,0.00019973,2]
[387703846,1758816640948,-506.99971912,0.00019973,2]
[387703848,1758816640958,-501.00712413,0.00019973,2]
[387703850,1758816640967,-500.0,0.00019973,2]
[387703852,1758816640976,-500.0,0.00019973,2]
[387703854,1758816640986,-500.0,0.00019973,2]
[387703856,1758816640995,-500.0,0.00019973,2]
[387703858,1758816641005,-163.59297665,0.00019973,2]
[387703860,1758816641015,-500.0,0.00019973,2]
[387703861,1758816641024,-503.57398142,0.00019973,2]
[387703862,1758816641033,-500.0,0.00019973,2]
[387703863,1758816641045,-500.0,0.00019973,2]
[387703865,1758816641055,-500.0,0.00019973,2]
[387703866,1758816641064,-500.0,0.00019973,2]
[387703867,1758816641074,-501.49750944,0.00019973,2]
[387703869,1758816641083,-500.0,0.00019973,2]
[387703871,1758816641093,-500.0,0.00019973,2]
[387703874,1758816641103,-629.49467178,0.00019973,2]
[387703876,1758816641112,-501.58013168,0.00019973,2]
[387703878,1758816641122,-500.0,0.00019973,2]
[387703879,1758816641131,-500.0,0.00019973,2]
[387703882,1758816641140,-500.03115209,0.00019973,2]
[387703883,1758816641151,-500.0,0.00019973,2]
[387703885,1758816641160,-500.0,0.00019973,2]
[387703887,1758816641171,-500.0,0.00019973,2]
[387703889,1758816641181,-100000.0,0.0001999,2]
[387703891,1758816641192,-500.0,0.00020121,2]
[387703894,1758816641201,-480.0,0.00020136,2]
[387703896,1758816641211,-480.0,0.00020136,2]
[387703898,1758816641221,-676.01,0.00020136,2]
[387703900,1758816641231,-1289.79,0.00020136,2]
[387703902,1758816641240,-480.0,0.00020136,2]
[387703904,1758816641249,-480.0,0.00020136,2]
[387703905,1758816641258,-480.0,0.00020136,2]
[387703908,1758816641267,-480.0,0.00020136,2]
[387703909,1758816641277,-480.0,0.00020136,2]
[387703911,1758816641286,-480.0,0.00020136,2]
[387703913,1758816641295,-189.57,0.00020137,2]
[387703915,1758816641305,-480.0,0.00020137,2]
[387703917,1758816641314,-480.0,0.00020137,2]
[387703919,1758816641323,-433.39794379,0.00020137,2]
[387703921,1758816641333,-1152.53,0.00020137,2]
[387703924,1758816641343,-353.43625007,0.00020137,2]
[387703926,1758816641352,-2971.61,0.00020137,2]
[387703928,1758816641362,-480.0,0.00020137,2]
[387703929,1758816641371,-1162.03,0.00020137,2]
[387703931,1758816641380,-522.61,0.00020137,2]
[387703933,1758816641390,-480.0,0.00020137,2]
[387703935,1758816641400,-480.0,0.00020137,2]
[387703937,1758816641409,-480.0,0.00020137,2]
[387703939,1758816641418,-768.28,0.00020137,2]
[387703941,1758816641427,-917.02,0.00020137,2]
[387703943,1758816641437,-480.0,0.00020137,2]
[387703945,1758816641447,-482.11,0.00020137,2]
[387703947,1758816641456,-480.0,0.00020137,2]
[387703949,1758816641466,-1138.82,0.00020137,2]
[387703951,1758816641475,-480.0,0.00020138,2]
[387703953,1758816641485,-498.1,0.00020138,2]
[387703955,1758816641495,-480.0,0.00020138,2]
[387703957,1758816641505,-530.93,0.0002017,2]
[387703959,1758816641516,-480.0,0.00020171,2]
[387703961,1758816641526,-480.0,0.00020171,2]
[387703963,1758816641536,-480.0,0.00020172,2]
[387703965,1758816641546,-530.57248651,0.00020369,2]
[387703968,1758816641557,-480.0,0.0002041,2]
[387703970,1758816641566,-480.0,0.0002041,2]
[387703972,1758816641576,-676.01,0.0002041,2]
[387703974,1758816641585,-1289.79,0.0002041,2]
[387703976,1758816641595,-480.0,0.0002041,2]
[387703978,1758816641604,-480.0,0.0002041,2]
[387703980,1758816641613,-480.0,0.0002041,2]
[387703982,1758816641623,-480.0,0.0002041,2]
[387703984,1758816641632,-480.0,0.0002041,2]
[387703986,1758816641641,-480.0,0.0002041,2]
[387703988,1758816641653,-480.0,0.00020411,2]
[387703990,1758816641662,-480.0,0.00020411,2]
[387703992,1758816641672,-1152.53,0.00020411,2]
[387703994,1758816641682,-2971.61,0.00020411,2]
[387703996,1758816641691,-480.0,0.00020411,2]
[387703998,1758816641703,-1162.03,0.00020411,2]
[387704000,1758816641712,-522.61,0.00020411,2]
[387704002,1758816641726,-480.0,0.00020411,2]
[387704003,1758816641735,-480.0,0.00020411,2]
[387704005,1758816641745,-480.0,0.00020411,2]
[387704007,1758816641754,-768.28,0.00020411,2]
[387704010,1758816641765,-917.02,0.00020411,2]
[387704011,1758816641775,-480.0,0.00020411,2]
[387704014,1758816641785,-482.11,0.00020411,2]
[387704015,1758816641795,-375.89161436,0.00020411,2]
[387704018,1758816641805,-1138.82,0.00020411,2]
[387704020,1758816641815,-480.0,0.00020412,2]
[387704022,1758816641826,-498.1,0.00020412,2]
[387704024,1758816641836,-480.0,0.00020412,2]
[387704025,1758816641845,-1004.43716036,0.00020421,2]
[387704027,1758816641855,-549.24933527,0.00020421,2]
[387704029,1758816641866,-602.65170465,0.00020421,2]
[387704032,1758816641876,-530.93,0.00020444,2]
[387704033,1758816641885,-218.6391164,0.00020445,2]
[387704036,1758816641895,-480.0,0.00020445,2]
[387704037,1758816641906,-480.0,0.00020446,2]
[387704040,1758816641916,-1001.64480659,0.00020521,2]
[387704041,1758816641931,-501.51328029,0.00020521,2]
[387704043,1758816641941,-500.66169981,0.00020521,2]
[387704045,1758816641951,-501.05629741,0.00020521,2]
[387704047,1758816641960,-1000.0,0.00020521,2]
[387704050,1758816641970,-1000.0,0.00020521,2]
[387704052,1758816641979,-1009.17100949,0.00020521,2]
[387704054,1758816641988,-1000.0,0.00020521,2]
[387704056,1758816641998,-506.80732628,0.00020521,2]
[387704058,1758816642008,-1000.0,0.00020521,2]
[387704060,1758816642017,-500.0,0.00020521,2]
[387704062,1758816642026,-742.22199612,0.00020521,2]
[387704063,1758816642035,-503.84850847,0.00020521,2]
[387704066,1758816642045,-1000.0,0.00020521,2]
[387704067,1758816642054,-702.87362549,0.00020521,2]
[387704070,1758816642064,-28567.35474008,0.00020627,3]
[387704072,1758816642074,-480.0,0.00020684,2]
[387704074,1758816642083,-480.0,0.00020684,2]
[387704076,1758816642093,-676.01,0.00020684,2]
[387704078,1758816642103,-1289.79,0.00020684,2]
[387704080,1758816642112,-480.0,0.00020684,2]
[387704081,1758816642121,-480.0,0.00020684,2]
[387704083,1758816642131,-480.0,0.00020684,2]
[387704086,1758816642141,-480.0,0.00020684,2]
[387704088,1758816642151,-480.0,0.00020684,2]
[387704090,1758816642162,-480.0,0.00020684,2]
[387704092,1758816642172,-480.0,0.00020685,2]
[387704094,1758816642181,-480.0,0.00020685,2]
[387704095,1758816642191,-1152.53,0.00020685,2]
[387704098,1758816642200,-2971.61,0.00020685,2]
[387704099,1758816642210,-480.0,0.00020685,2]
[387704102,1758816642219,-1162.03,0.00020685,2]
[387704103,1758816642230,-522.61,0.00020685,2]
[387704106,1758816642240,-307.16081962,0.00020685,2]
[387704108,1758816642249,-325.63010335,0.00020685,2]
[387704109,1758816642259,-540.88969776,0.00020685,2]
[387704112,1758816642269,-768.28,0.00020685,2]
[387704114,1758816642278,-917.02,0.00020685,2]
[387704116,1758816642288,-480.0,0.00020685,2]
[387704118,1758816642297,-482.11,0.00020685,2]
[387704130,1758816642387,-1138.82,0.00020685,2]
[387704133,1758816642397,-498.1,0.00020686,2]
[387704135,1758816642408,-480.0,0.00020686,2]
[387704138,1758816642417,-150.0,0.00020706,2]
[387704141,1758816642427,-530.93,0.00020718,2]
[387704144,1758816642436,-480.0,0.00020719,2]
[387704147,1758816642446,-480.0,0.0002072,2]
[387704150,1758816642456,-480.0,0.00020958,2]
[387704152,1758816642465,-480.0,0.00020958,2]
[387704154,1758816642474,-676.01,0.00020958,2]
[387704157,1758816642483,-1289.79,0.00020958,2]
[387704159,1758816642493,-330.95765582,0.00020958,2]
[387704161,1758816642503,-480.0,0.00020958,2]
[387704163,1758816642512,-480.0,0.00020958,2]
[387704165,1758816642521,-480.0,0.00020958,2]
[387704167,1758816642530,-480.0,0.00020958,2]
[387704169,1758816642540,-480.0,0.00020958,2]
[387704171,1758816642549,-480.0,0.00020959,2]
[387704173,1758816642558,-480.0,0.00020959,2]
[387704177,1758816642568,-1152.53,0.00020959,2]
[387704181,1758816642577,-2971.61,0.00020959,2]
[387704185,1758816642587,-269.76237865,0.00020959,2]
[387704189,1758816642596,-1162.03,0.00020959,2]
[387704193,1758816642605,-522.61,0.00020959,2]
[387704197,1758816642615,-768.28,0.00020959,2]
[387704202,1758816642624,-917.02,0.00020959,2]
[387704206,1758816642633,-480.0,0.00020959,2]
[387704210,1758816642642,-482.11,0.00020959,2]
[387704214,1758816642651,-1138.82,0.00020959,2]
[387704217,1758816642661,-498.1,0.0002096,2]
[387704220,1758816642670,-480.0,0.0002096,2]
[387704223,1758816642681,-2263.0832248,0.00020972,2]
[387704226,1758816642690,-530.93,0.00020992,2]
[387704229,1758816642699,-480.0,0.00020993,2]
[387704233,1758816642709,-480.0,0.00020994,2]
[387704236,1758816642719,-424.29372079,0.00021012,2]
[387704240,1758816642731,-1500.0,0.00021068,2]
[387704244,1758816642740,-449.93720386,0.00021068,2]
[387704247,1758816642749,-1500.0,0.00021068,2]
[387704250,1758816642759,-1500.0,0.00021068,2]
[387704251,1758816642769,-509.55569589,0.00021068,2]
[387704253,1758816642778,-160.0,0.00021223,2]
[387704255,1758816642787,-480.0,0.00021232,2]
[387704257,1758816642799,-480.0,0.00021232,2]
[387704259,1758816642808,-676.01,0.00021232,2]
[387704261,1758816642818,-1289.79,0.00021232,2]
[387704263,1758816642827,-480.0,0.00021232,2]
[387704265,1758816642837,-480.0,0.00021232,2]
[387704267,1758816642847,-480.0,0.00021232,2]
[387704269,1758816642856,-261.1099704,0.00021232,2]
[387704271,1758816642865,-480.0,0.00021232,2]
[387704273,1758816642875,-480.0,0.00021233,2]
[387704275,1758816642886,-212.71,0.00021233,2]
[387704277,1758816642895,-1152.53,0.00021233,2]
[387704279,1758816642905,-2971.61,0.00021233,2]
[387704281,1758816642914,-1162.03,0.00021233,2]
[387704283,1758816642924,-522.61,0.00021233,2]
[387704285,1758816642934,-768.28,0.00021233,2]
[387704287,1758816642943,-917.02,0.00021233,2]
[387704289,1758816642952,-480.0,0.00021233,2]
[387704291,1758816642962,-482.11,0.00021233,2]
[387704293,1758816642972,-1138.82,0.00021233,2]
[387704295,1758816642982,-498.1,0.00021234,2]
[387704297,1758816642991,-480.0,0.00021234,2]
[387704300,1758816643000,-530.93,0.00021266,2]
[387704303,1758816643010,-480.0,0.00021267,2]
[387704306,1758816643019,-480.0,0.00021268,2]
[387704309,1758816643028,-168.63354543,0.00021445,2]
[387704312,1758816643038,-480.0,0.00021506,2]
[387704315,1758816643047,-480.0,0.00021506,2]
[387704318,1758816643058,-676.01,0.00021506,2]
[387704321,1758816643067,-1289.79,0.00021506,2]
[387704323,1758816643077,-480.0,0.00021506,2]
[387704325,1758816643086,-480.0,0.00021506,2]
[387704327,1758816643095,-360.37,0.00021506,2]
[387704329,1758816643105,-480.0,0.00021506,2]
[387704331,1758816643114,-480.0,0.00021507,2]
[387704333,1758816643124,-1152.53,0.00021507,2]
[387704336,1758816643134,-2971.61,0.00021507,2]
[387704339,1758816643143,-1162.03,0.00021507,2]
[387704342,1758816643152,-522.61,0.00021507,2]
[387704345,1758816643162,-768.28,0.00021507,2]
[387704348,1758816643171,-917.02,0.00021507,2]
[387704351,1758816643181,-480.0,0.00021507,2]
[387704353,1758816643191,-482.11,0.00021507,2]
[387704355,1758816643201,-1138.82,0.00021507,2]
[387704357,1758816643210,-498.1,0.00021508,2]
[387704359,1758816643220,-480.0,0.00021508,2]
[387704361,1758816643229,-530.93,0.0002154,2]
[387704363,1758816643238,-480.0,0.00021541,2]
[387704365,1758816643248,-480.0,0.00021542,2]
[387704367,1758816643257,-623.56628512,0.00021616,2]
[387704369,1758816643267,-2000.0,0.00021616,2]
[387704371,1758816643276,-503.24530109,0.00021616,2]
[387704373,1758816643286,-720.0,0.0002167,20]
[387704375,1758816643296,-260.0,0.00021771,2]
[387704377,1758816643306,-480.0,0.0002178,2]
[387704379,1758816643315,-480.0,0.0002178,2]
[387704381,1758816643325,-676.01,0.0002178,2]
[387704383,1758816643335,-1289.79,0.0002178,2]
[387704385,1758816643345,-480.0,0.0002178,2]
[387704388,1758816643354,-480.0,0.0002178,2]
[387704391,1758816643363,-480.0,0.0002178,2]
[387704393,1758816643372,-480.0,0.00021781,2]
[387704395,1758816643382,-1152.53,0.00021781,2]
[387704397,1758816643391,-2971.61,0.00021781,2]
[387704399,1758816643402,-1162.03,0.00021781,2]
[387704401,1758816643411,-522.61,0.00021781,2]
[387704403,1758816643421,-768.28,0.00021781,2]
[387704405,1758816643430,-917.02,0.00021781,2]
[387704407,1758816643440,-480.0,0.00021781,2]
[387704409,1758816643449,-482.11,0.00021781,2]
[387704411,1758816643458,-1138.82,0.00021781,2]
[387704413,1758816643468,-498.1,0.00021782,2]
[387704415,1758816643477,-480.0,0.00021782,2]
[387704417,1758816643487,-530.93,0.00021814,2]
[387704419,1758816643496,-474.38,0.00021815,2]
[387704421,1758816643506,-480.0,0.00021816,2]
[387704423,1758816643515,-480.0,0.00021917,2]
[387704425,1758816643525,-480.0,0.00021917,2]
[387704427,1758816643534,-480.0,0.00021917,2]
[387704429,1758816643544,-480.0,0.00021917,2]
[387704431,1758816643553,-480.0,0.00021917,2]
[387704433,1758816643563,-150.0,0.00021918,2]
[387704435,1758816643571,-2263.0832248,0.00022044,2]
[387704437,1758816643581,-480.0,0.00022054,2]
[387704439,1758816643591,-480.0,0.00022054,2]
[387704441,1758816643600,-676.01,0.00022054,2]
[387704443,1758816643609,-1289.79,0.00022054,2]
[387704445,1758816643619,-480.0,0.00022054,2]
[387704447,1758816643628,-480.0,0.00022054,2]
[387704449,1758816643638,-480.0,0.00022054,2]
[387704451,1758816643647,-480.0,0.00022055,2]
[387704453,1758816643658,-1152.53,0.00022055,2]
[387704455,1758816643668,-2971.61,0.00022055,2]
[387704457,1758816643677,-1162.03,0.00022055,2]
[387704459,1758816643687,-522.61,0.00022055,2]
[387704461,1758816643697,-768.28,0.00022055,2]
[387704463,1758816643706,-917.02,0.00022055,2]
[387704465,1758816643716,-480.0,0.00022055,2]
[387704467,1758816643730,-482.11,0.00022055,2]
[387704469,1758816643740,-1138.82,0.00022055,2]
[387704471,1758816643750,-498.1,0.00022056,2]
[387704473,1758816643761,-480.0,0.00022056,2]
[387704475,1758816643771,-530.93,0.00022088,2]
[387704477,1758816643780,-405.55,0.0002209,2]
[387704479,1758816643789,-1554.25,0.000221,2]
[387704481,1758816643800,-9632.4116108,0.00022291,2]
[387704483,1758816643811,-360.0,0.00022319,2]
[387704485,1758816643820,-480.0,0.00022328,2]
[387704487,1758816643830,-480.0,0.00022328,2]
[387704489,1758816643839,-676.01,0.00022328,2]
[387704491,1758816643848,-1289.79,0.00022328,2]
[387704493,1758816643858,-480.0,0.00022328,2]
[387704495,1758816643867,-480.0,0.00022328,2]
[387704497,1758816643876,-480.0,0.00022328,2]
[387704499,1758816643886,-480.0,0.00022329,2]
[387704501,1758816643896,-1152.53,0.00022329,2]
[387704503,1758816643906,-2971.61,0.00022329,2]
[387704505,1758816643916,-1162.03,0.00022329,2]
[387704507,1758816643926,-522.61,0.00022329,2]
[387704509,1758816643935,-768.28,0.00022329,2]
[387704511,1758816643945,-917.02,0.00022329,2]
[387704513,1758816643955,-480.0,0.00022329,2]
[387704515,1758816643964,-482.11,0.00022329,2]
[387704517,1758816643973,-1138.82,0.00022329,2]
[387704518,1758816643983,-498.1,0.0002233,2]
[387704519,1758816643994,-480.0,0.0002233,2]
[387704520,1758816644003,-530.93,0.00022362,2]
[387704521,1758816644013,-300.0,0.00022466,2]
[387704522,1758816644023,-160.0,0.00022523,2]
[387704523,1758816644033,-160.0,0.00022523,2]
[387704524,1758816644042,-233.66602051,0.00022523,2]
[387704525,1758816644052,-160.0,0.00022523,2]
[387704526,1758816644062,-480.0,0.00022527,2]
[387704527,1758816644072,-480.40358358,0.00022527,2]
[387704528,1758816644082,-154.02,0.00022543,2]
[387704529,1758816644091,-424.29372079,0.0002255,2]
[387704530,1758816644101,-480.0,0.00022602,2]
[387704531,1758816644111,-480.0,0.00022602,2]
[387704532,1758816644120,-676.01,0.00022602,2]
[387704533,1758816644130,-1289.79,0.00022602,2]
[387704534,1758816644139,-480.0,0.00022602,2]
[387704535,1758816644149,-480.0,0.00022602,2]
[387704536,1758816644159,-480.0,0.00022602,2]
[387704537,1758816644170,-480.0,0.00022603,2]
[387704538,1758816644179,-1152.53,0.00022603,2]
[387704539,1758816644189,-2971.61,0.00022603,2]
[387704540,1758816644199,-1162.03,0.00022603,2]
[387704541,1758816644209,-522.61,0.00022603,2]
[387704543,1758816644219,-768.28,0.00022603,2]
[387704544,1758816644228,-917.02,0.00022603,2]
[387704546,1758816644238,-480.0,0.00022603,2]
[387704548,1758816644247,-482.11,0.00022603,2]
[387704550,1758816644257,-498.1,0.00022604,2]
[387704552,1758816644266,-263.99,0.00022604,2]
[387704554,1758816644275,-530.93,0.00022636,2]
[387704556,1758816644285,-500.0,0.00022752,2]
[387704558,1758816644294,-500.0,0.00022806,2]
[387704560,1758816644304,-460.0,0.00022867,2]
[387704562,1758816644314,-480.0,0.00022876,2]
[387704564,1758816644323,-480.0,0.00022876,2]
[387704566,1758816644334,-676.01,0.00022876,2]
[387704568,1758816644343,-1289.79,0.00022876,2]
[387704570,1758816644353,-480.0,0.00022876,2]
[387704572,1758816644362,-480.0,0.00022876,2]
[387704574,1758816644371,-480.0,0.00022876,2]
[387704576,1758816644381,-480.0,0.00022877,2]
[387704578,1758816644390,-1152.53,0.00022877,2]
[387704580,1758816644399,-2971.61,0.00022877,2]
[387704582,1758816644410,-1162.03,0.00022877,2]
[387704584,1758816644419,-522.61,0.00022877,2]
[387704586,1758816644431,-768.28,0.00022877,2]
[387704588,1758816644441,-917.02,0.00022877,2]
[387704590,1758816644450,-480.0,0.00022877,2]
[387704592,1758816644460,-482.11,0.00022877,2]
[387704594,1758816644469,-498.1,0.00022878,2]
[387704596,1758816644479,-530.93,0.0002291,2]
[387704598,1758816644489,-500.0,0.00022926,2]
[387704600,1758816644498,-450.0,0.00023014,2]
[387704602,1758816644508,-500.0,0.00023069,2]
[387704604,1758816644517,-500.0,0.00023095,2]
[387704606,1758816644527,-2263.0832248,0.00023116,2]
[387704616,1758816644611,-480.0,0.0002315,2]
[387704618,1758816644621,-480.0,0.0002315,2]
[387704620,1758816644630,-676.01,0.0002315,2]
[387704622,1758816644639,-1289.79,0.0002315,2]
[387704624,1758816644649,-480.0,0.0002315,2]
[387704626,1758816644659,-480.0,0.0002315,2]
[387704628,1758816644668,-445.32102301,0.0002315,2]
[387704630,1758816644677,-234.53836381,0.00023151,2]
[387704632,1758816644687,-1152.53,0.00023151,2]
[387704635,1758816644699,-2971.61,0.00023151,2]
[387704637,1758816644709,-1162.03,0.00023151,2]
[387704639,1758816644720,-522.61,0.00023151,2]
[387704641,1758816644730,-768.28,0.00023151,2]
[387704643,1758816644740,-917.02,0.00023151,2]
[387704645,1758816644750,-480.0,0.00023151,2]
[387704647,1758816644760,-482.11,0.00023151,2]
[387704649,1758816644771,-498.1,0.00023152,2]
[387704651,1758816644781,-530.93,0.00023184,2]
[387704653,1758816644794,-533.27638138,0.00023188,2]
[387704655,1758816644804,-533.27638138,0.00023188,2]
[387704657,1758816644814,-533.27638138,0.00023188,2]
[387704659,1758816644824,-151.0,0.000232,8]
[387704661,1758816644833,-500.0,0.00023219,2]
[387704663,1758816644843,-533.27638138,0.00023327,2]
[387704665,1758816644853,-533.27638138,0.00023327,2]
[387704667,1758816644862,-560.0,0.00023415,2]
[387704669,1758816644871,-480.0,0.00023424,2]
[387704671,1758816644880,-480.0,0.00023424,2]
[387704673,1758816644890,-676.01,0.00023424,2]
[387704675,1758816644899,-1289.79,0.00023424,2]
[387704677,1758816644912,-480.0,0.00023424,2]
[387704679,1758816644922,-480.0,0.00023424,2]
[387704681,1758816644932,-1152.53,0.00023425,2]
[387704683,1758816644941,-2971.61,0.00023425,2]
[387704685,1758816644951,-1162.03,0.00023425,2]
[387704687,1758816644960,-522.61,0.00023425,2]
[387704689,1758816644970,-768.28,0.00023425,2]
[387704691,1758816644979,-917.02,0.00023425,2]
[387704693,1758816644989,-480.0,0.00023425,2]
[387704695,1758816644999,-482.11,0.00023425,2]
[387704697,1758816645009,-498.1,0.00023426,2]
[387704699,1758816645018,-500.0,0.0002343,2]